fUSD/lending_fUSD_20251014
["ID","MTS","AMOUNT","RATE_DAILY","PERIOD"]
[391291834,1760470288777,-500.0,0.0001726,2]
[391291835,1760470288786,-500.0,0.0001726,2]
[391291836,1760470288795,-500.0,0.0001726,2]
[391291837,1760470288804,-585.68,0.0001726,2]
[391291838,1760470288813,-500.0,0.0001726,2]
[391291839,1760470288822,-500.0,0.0001726,2]
[391291840,1760470288831,-631.45,0.0001726,2]
[391291841,1760470288841,-513.66930234,0.0001726,2]
[391291842,1760470288850,-500.0,0.0001726,2]
[391291843,1760470288859,-1167.34,0.0001726,2]
[391291844,1760470288868,-500.0,0.0001726,2]
[391291845,1760470288877,-500.0,0.0001726,2]
[391291846,1760470288886,-1847.92,0.0001726,2]
[391291847,1760470288895,-500.0,0.0001726,2]
[391291848,1760470288904,-500.0,0.0001726,2]
[391291849,1760470288913,-500.0,0.0001726,2]
[391291850,1760470288923,-1532.08,0.0001726,2]
[391291851,1760470288933,-500.0,0.0001726,2]
[391291852,1760470288942,-789.69,0.0001726,2]
[391291853,1760470288951,-500.0,0.0001726,2]
[391291854,1760470288960,-1328.02,0.0001726,2]
[391291855,1760470288970,-1654.08,0.0001726,2]
[391291856,1760470288978,-500.0,0.0001726,2]
[391291857,1760470288987,-906.08,0.0001726,2]
[391291858,1760470288997,-500.0,0.0001726,2]
[391291859,1760470289006,-500.0,0.0001726,2]
[391291860,1760470289015,-634.56,0.0001726,2]
[391291861,1760470289024,-538.12,0.0001726,2]
[391291862,1760470289033,-500.0,0.0001726,2]
[391291863,1760470289042,-500.0,0.0001726,2]
[391291864,1760470289052,-1061.26,0.0001726,2]
[391291865,1760470289061,-500.0,0.0001726,2]
[391291866,1760470289071,-500.0,0.0001726,2]
[391291867,1760470289080,-500.0,0.0001726,2]
[391291868,1760470289089,-500.0,0.0001726,2]
[391291869,1760470289099,-618.58,0.0001726,2]
[391291870,1760470289108,-176.81502247,0.0001726,2]
[391291871,1760470289118,-500.0,0.0001726,2]
[391291872,1760470289127,-597.9629358,0.0001726,2]
[391291873,1760470289137,-500.0,0.0001726,2]
[391291874,1760470289146,-500.0,0.0001726,2]
[391291875,1760470289155,-537.36386306,0.0001726,2]
[391291876,1760470289165,-500.0,0.0001726,2]
[391291877,1760470289174,-1128.82,0.0001726,2]
[391291878,1760470289184,-500.0,0.0001726,2]
[391291879,1760470289193,-669.16,0.0001726,2]
[391291880,1760470289202,-500.0,0.0001726,2]
[391291881,1760470289212,-458.25638979,0.0001726,2]
[391291882,1760470289221,-603.72,0.0001726,2]
[391291883,1760470289230,-504.62,0.0001726,2]
[391291884,1760470289239,-550.48,0.0001726,2]
[391291885,1760470289248,-1443.49,0.0001726,2]
[391291886,1760470289258,-500.0,0.0001726,2]
[391291887,1760470289267,-500.0,0.0001726,2]
[391291888,1760470289276,-347.36807594,0.0001726,2]
[391291889,1760470289285,-1481.44,0.0001726,2]
[391291890,1760470289294,-500.0,0.0001726,2]
[391291891,1760470289303,-1472.05,0.0001726,2]
[391291892,1760470289312,-500.0,0.0001726,2]
[391291893,1760470289322,-1579.46,0.0001726,2]
[391291894,1760470289331,-500.0,0.0001726,2]
[391291895,1760470289340,-543.73847506,0.0001726,2]
[391291896,1760470289350,-536.91,0.0001726,2]
[391291897,1760470289360,-1231.16,0.0001726,2]
[391291898,1760470289369,-976.88,0.0001726,2]
[391291899,1760470289380,-500.0,0.0001726,2]
[391291900,1760470289393,-700.83,0.0001726,2]
[391291901,1760470289403,-500.0,0.0001726,2]
[391291902,1760470289412,-500.0,0.0001726,2]
[391291903,1760470289421,-500.0,0.0001726,2]
[391291904,1760470289430,-668.16,0.0001726,2]
[391291905,1760470289440,-578.51,0.0001726,2]
[391291906,1760470289450,-779.53,0.0001726,2]
[391291907,1760470289459,-500.0,0.0001726,2]
[391291908,1760470289472,-500.0,0.0001726,2]
[391291909,1760470289482,-500.0,0.0001726,2]
[391291910,1760470289492,-808.76,0.0001726,2]
[391291911,1760470289502,-500.0,0.0001726,2]
[391291912,1760470289513,-500.0,0.0001726,2]
[391291913,1760470289747,-642.78,0.0001726,2]
[391291914,1760470289757,-840.69,0.0001726,2]
[391291915,1760470289766,-500.0,0.0001726,2]
[391291916,1760470289775,-500.0,0.0001726,2]
[391291917,1760470289784,-511.02,0.0001726,2]
[391291918,1760470289794,-796.21,0.0001726,2]
[391291919,1760470289803,-500.0,0.0001726,2]
[391291920,1760470289812,-1118.93,0.0001726,2]
[391291921,1760470289821,-868.41,0.0001726,2]
[391291922,1760470289830,-500.0,0.0001726,2]
[391291923,1760470289839,-500.0,0.0001726,2]
[391291924,1760470289848,-500.0,0.0001726,2]
[391291925,1760470289857,-1870.46,0.0001726,2]
[391291926,1760470289866,-500.0,0.0001726,2]
[391291927,1760470289875,-500.0,0.0001726,2]
[391291928,1760470289888,-1228.28,0.0001726,2]
[391291929,1760470289897,-558.37,0.0001726,2]
[391291930,1760470289905,-500.0,0.0001726,2]
[391291931,1760470289915,-539.96,0.0001726,2]
[391291932,1760470289924,-1002.95,0.0001726,2]
[391291933,1760470289933,-500.0,0.0001726,2]
[391291934,1760470289942,-500.0,0.0001726,2]
[391291935,1760470289951,-688.47,0.0001726,2]
[391291936,1760470289960,-989.31,0.0001726,2]
[391291937,1760470289969,-503.21,0.0001726,2]
[391291938,1760470289978,-500.0,0.0001726,2]
[391291939,1760470289987,-1208.46,0.0001726,2]
[391291940,1760470289995,-500.0,0.0001726,2]
[391291941,1760470290005,-1347.55,0.0001726,2]
[391291942,1760470290013,-968.38,0.0001726,2]
[391291943,1760470290022,-500.0,0.0001726,2]
[391291944,1760470290031,-1432.36,0.0001726,2]
[391291945,1760470290040,-550.09,0.0001726,2]
[391291946,1760470290049,-634.49,0.0001726,2]
[391291947,1760470290057,-582.07,0.0001726,2]
[391291948,1760470290066,-500.0,0.0001726,2]
[391291949,1760470290075,-500.0,0.0001726,2]
[391291950,1760470290084,-500.0,0.0001726,2]
[391291951,1760470290093,-577.61,0.0001726,2]
[391291952,1760470290102,-666.69,0.0001726,2]
[391291953,1760470290111,-500.0,0.0001726,2]
[391291954,1760470290120,-599.86,0.0001726,2]
[391291955,1760470290130,-559.69,0.0001726,2]
[391291956,1760470290139,-500.0,0.0001726,2]
[391291957,1760470290148,-1546.65,0.0001726,2]
[391291958,1760470290157,-590.69,0.0001726,2]
[391291959,1760470290166,-1017.67,0.0001726,2]
[391291960,1760470290175,-500.0,0.0001726,2]
[391291961,1760470290185,-1405.19,0.0001726,2]
[391291962,1760470290193,-485.12734085,0.0001726,2]
[391291963,1760470290202,-500.0,0.0001726,2]
[391291964,1760470290211,-1481.46,0.0001726,2]
[391291965,1760470290220,-500.0,0.0001726,2]
[391291966,1760470290229,-1493.35,0.0001726,2]
[391291967,1760470290238,-1863.88,0.0001726,2]
[391291968,1760470290247,-500.0,0.0001726,2]
[391291969,1760470290256,-1165.81,0.0001726,2]
[391291970,1760470290265,-615.04,0.0001726,2]
[391291971,1760470290274,-500.0,0.0001726,2]
[391291972,1760470290283,-500.0,0.0001726,2]
[391291973,1760470290291,-500.0,0.0001726,2]
[391291974,1760470290300,-500.0,0.0001726,2]
[391291975,1760470290309,-500.0,0.0001726,2]
[391291976,1760470290319,-500.0,0.0001726,2]
[391291977,1760470290328,-845.77,0.0001726,2]
[391291978,1760470290337,-519.58518806,0.0001726,2]
[391291979,1760470290345,-500.0,0.0001726,2]
[391291980,1760470290355,-233.0667154,0.0001726,2]
[391291981,1760470290364,-995.12,0.0001726,2]
[391291982,1760470290373,-500.0,0.0001726,2]
[391291983,1760470290386,-500.0,0.0001726,2]
[391291984,1760470290398,-500.0,0.0001726,2]
[391291985,1760470290407,-666.9,0.0001726,2]
[391291986,1760470290416,-500.0,0.0001726,2]
[391291987,1760470290425,-500.0,0.0001726,2]
[391291988,1760470290434,-163.1805119,0.0001726,2]
[391291989,1760470290444,-500.0,0.0001726,2]
[391291990,1760470290453,-500.0,0.0001726,2]
[391291991,1760470290463,-500.0,0.0001726,2]
[391291992,1760470290471,-500.0,0.0001726,2]
[391291993,1760470290480,-630.12,0.0001726,2]
[391291994,1760470290489,-500.0,0.0001726,2]
[391291995,1760470290499,-500.0,0.0001726,2]
[391291996,1760470290508,-702.68,0.0001726,2]
[391291997,1760470290517,-1045.02,0.0001726,2]
[391291998,1760470290526,-500.0,0.0001726,2]
[391291999,1760470290535,-500.0,0.0001726,2]
[391292000,1760470290544,-500.0,0.0001726,2]
[391292001,1760470290554,-500.0,0.0001726,2]
[391292002,1760470290563,-500.0,0.0001726,2]
[391292003,1760470290572,-500.0,0.0001726,2]
[391292004,1760470290581,-436.7591944,0.0001726,2]
[391292005,1760470290590,-500.0,0.0001726,2]
[391292006,1760470290599,-500.0,0.0001726,2]
[391292007,1760470290608,-500.0,0.0001726,2]
[391292008,1760470290617,-500.0,0.0001726,2]
[391292009,1760470290625,-500.0,0.0001726,2]
[391292010,1760470290636,-976.98,0.0001726,2]
[391292011,1760470290645,-500.0,0.0001726,2]
[391292012,1760470290654,-500.0,0.0001726,2]
[391292013,1760470290663,-500.0,0.0001726,2]
[391292014,1760470290671,-500.0,0.0001726,2]
[391292015,1760470290680,-500.0,0.0001726,2]
[391292016,1760470290689,-500.0,0.0001726,2]
[391292017,1760470290698,-500.0,0.0001726,2]
[391292018,1760470290707,-500.0,0.0001726,2]
[391292019,1760470290717,-530.32,0.0001726,2]
[391292020,1760470290725,-500.0,0.0001726,2]
[391292021,1760470290734,-884.86,0.0001726,2]
[391292022,1760470290743,-480.95,0.0001726,2]
[391292023,1760470290752,-364.1192264,0.0001726,2]
[391292024,1760470290762,-500.0,0.0001726,2]
[391292025,1760470290770,-500.0,0.0001726,2]
[391292026,1760470290779,-1661.53,0.0001726,2]
[391292027,1760470290788,-500.0,0.0001726,2]
[391292028,1760470290797,-500.0,0.0001726,2]
[391292029,1760470290806,-1079.56,0.0001726,2]
[391292030,1760470290815,-159.12797821,0.0001726,2]
[391292031,1760470290824,-500.0,0.0001726,2]
[391292032,1760470290833,-500.0,0.0001726,2]
[391292033,1760470290842,-500.0,0.0001726,2]
[391292034,1760470290851,-500.0,0.0001726,2]
[391292035,1760470290860,-500.0,0.0001726,2]
[391292036,1760470290869,-500.0,0.0001726,2]
[391292037,1760470290879,-713.93,0.0001726,2]
[391292038,1760470290888,-863.39,0.0001726,2]
[391292039,1760470290897,-632.8,0.0001726,2]
[391292040,1760470290906,-500.0,0.0001726,2]
[391292041,1760470290915,-500.0,0.0001726,2]
[391292042,1760470290924,-581.24,0.0001726,2]
[391292043,1760470290933,-500.0,0.0001726,2]
[391292044,1760470290942,-622.91,0.0001726,2]
[391292045,1760470290951,-500.0,0.0001726,2]
[391292046,1760470290960,-699.63,0.0001726,2]
[391292047,1760470290969,-860.05,0.0001726,2]
[391292048,1760470290978,-500.0,0.0001726,2]
[391292049,1760470290986,-500.0,0.0001726,2]
[391292050,1760470290995,-535.38,0.0001726,2]
[391292051,1760470291004,-623.63267543,0.0001726,2]
[391292052,1760470291013,-500.0,0.0001726,2]
[391292053,1760470291022,-549.26,0.0001726,2]
[391292054,1760470291039,-500.0,0.0001726,2]
[391292055,1760470291051,-1235.98,0.0001726,2]
[391292056,1760470291060,-500.0,0.0001726,2]
[391292057,1760470291069,-500.0,0.0001726,2]
[391292058,1760470291078,-500.0,0.0001726,2]
[391292059,1760470291088,-532.51,0.0001726,2]
[391292060,1760470291097,-1599.92,0.0001726,2]
[391292061,1760470291106,-500.0,0.0001726,2]
[391292062,1760470291115,-500.0,0.0001726,2]
[391292063,1760470291124,-500.0,0.0001726,2]
[391292064,1760470291137,-501.42,0.0001726,2]
[391292065,1760470291146,-500.0,0.0001726,2]
[391292066,1760470291156,-500.0,0.0001726,2]
[391292067,1760470291165,-500.0,0.0001726,2]
[391292068,1760470291174,-1893.86,0.0001726,2]
[391292069,1760470291184,-643.32,0.0001726,2]
[391292070,1760470291193,-500.0,0.0001726,2]
[391292071,1760470291202,-1633.98,0.0001726,2]
[391292072,1760470291211,-655.61,0.0001726,2]
[391292073,1760470291221,-500.0,0.0001726,2]
[391292074,1760470291230,-1863.8,0.0001726,2]
[391292075,1760470291239,-500.0,0.0001726,2]
[391292076,1760470291249,-500.0,0.0001726,2]
[391292077,1760470291258,-732.11,0.0001726,2]
[391292078,1760470291267,-500.0,0.0001726,2]
[391292079,1760470291276,-931.06,0.0001726,2]
[391292080,1760470291286,-1829.34,0.0001726,2]
[391292081,1760470291295,-500.0,0.0001726,2]
[391292082,1760470291304,-1773.97,0.0001726,2]
[391292083,1760470291313,-500.0,0.0001726,2]
[391292084,1760470291322,-500.0,0.0001726,2]
[391292085,1760470291332,-1348.9,0.0001726,2]
[391292086,1760470291340,-1445.37,0.0001726,2]
[391292087,1760470291349,-500.0,0.0001726,2]
[391292088,1760470291358,-500.0,0.0001726,2]
[391292089,1760470291368,-834.86,0.0001726,2]
[391292090,1760470291377,-705.99,0.0001726,2]
[391292091,1760470291388,-2975.7,0.0001726,2]
[391292092,1760470291403,-500.0,0.0001726,2]
[391292093,1760470291413,-500.0,0.0001726,2]
[391292094,1760470291423,-500.0,0.0001726,2]
[391292095,1760470291432,-689.07,0.0001726,2]
[391292096,1760470291442,-1138.96,0.0001726,2]
[391292097,1760470291452,-500.0,0.0001726,2]
[391292098,1760470291462,-624.14,0.0001726,2]
[391292099,1760470291472,-1529.3,0.0001726,2]
[391292100,1760470291481,-500.0,0.0001726,2]
[391292101,1760470291491,-500.0,0.0001726,2]
[391292102,1760470291500,-2316.11,0.0001726,2]
[391292103,1760470291509,-500.0,0.0001726,2]
[391292104,1760470291519,-541.35,0.0001726,2]
[391292105,1760470291527,-500.0,0.0001726,2]
[391292106,1760470291537,-500.0,0.0001726,2]
[391292107,1760470291546,-500.0,0.0001726,2]
[391292108,1760470291556,-500.0,0.0001726,2]
[391292109,1760470291565,-500.0,0.0001726,2]
[391292110,1760470291574,-1344.14,0.0001726,2]
[391292111,1760470291584,-1058.36,0.0001726,2]
[391292112,1760470291593,-500.0,0.0001726,2]
[391292113,1760470291602,-500.0,0.0001726,2]
[391292114,1760470291611,-1109.4,0.0001726,2]
[391292115,1760470291621,-615.06,0.0001726,2]
[391292116,1760470291631,-500.0,0.0001726,2]
[391292117,1760470291642,-500.0,0.0001726,2]
[391292118,1760470291652,-877.9,0.0001726,2]
[391292119,1760470291661,-720.56,0.0001726,2]
[391292120,1760470291670,-500.0,0.0001726,2]
[391292121,1760470291679,-585.85,0.0001726,2]
[391292122,1760470291690,-500.0,0.0001726,2]
[391292123,1760470291699,-500.0,0.0001726,2]
[391292124,1760470291709,-1073.42,0.0001726,2]
[391292125,1760470291719,-500.0,0.0001726,2]
[391292126,1760470291728,-500.0,0.0001726,2]
[391292127,1760470291737,-500.0,0.0001726,2]
[391292128,1760470291747,-678.38,0.0001726,2]
[391292129,1760470291756,-500.0,0.0001726,2]
[391292130,1760470291766,-500.0,0.0001726,2]
[391292131,1760470291779,-500.0,0.0001726,2]
[391292132,1760470291788,-500.0,0.0001726,2]
[391292133,1760470291798,-654.15,0.0001726,2]
[391292134,1760470291808,-1090.8,0.0001726,2]
[391292135,1760470291817,-669.37,0.0001726,2]
[391292136,1760470291826,-500.0,0.0001726,2]
[391292137,1760470291836,-500.0,0.0001726,2]
[391292138,1760470291845,-500.0,0.0001726,2]
[391292139,1760470291855,-1229.42,0.0001726,2]
[391292140,1760470291864,-500.0,0.0001726,2]
[391292141,1760470291874,-500.0,0.0001726,2]
[391292142,1760470291884,-500.0,0.0001726,2]
[391292143,1760470291894,-906.83,0.0001726,2]
[391292144,1760470291903,-500.0,0.0001726,2]
[391292145,1760470291913,-563.32,0.0001726,2]
[391292146,1760470291922,-500.0,0.0001726,2]
[391292147,1760470291932,-500.0,0.0001726,2]
[391292148,1760470291941,-500.0,0.0001726,2]
[391292149,1760470291950,-500.0,0.0001726,2]
[391292150,1760470291959,-668.43,0.0001726,2]
[391292151,1760470292191,-500.0,0.0001726,2]
[391292152,1760470292200,-500.0,0.0001726,2]
[391292153,1760470292209,-500.0,0.0001726,2]
[391292154,1760470292218,-518.6,0.0001726,2]
[391292155,1760470292227,-962.22,0.0001726,2]
[391292156,1760470292236,-500.0,0.0001726,2]
[391292157,1760470292245,-500.0,0.0001726,2]
[391292158,1760470292255,-500.0,0.0001726,2]
[391292159,1760470292263,-500.0,0.0001726,2]
[391292160,1760470292272,-1408.48,0.0001726,2]
[391292161,1760470292282,-897.34,0.0001726,2]
[391292162,1760470292294,-543.61,0.0001726,2]
[391292163,1760470292303,-500.0,0.0001726,2]
[391292164,1760470292312,-500.0,0.0001726,2]
[391292165,1760470292321,-838.51,0.0001726,2]
[391292166,1760470292331,-2173.81,0.0001726,2]
[391292167,1760470292340,-500.0,0.0001726,2]
[391292168,1760470292349,-889.19,0.0001726,2]
[391292169,1760470292358,-500.0,0.0001726,2]
[391292170,1760470292367,-1003.49,0.0001726,2]
[391292171,1760470292376,-500.0,0.0001726,2]
[391292172,1760470292386,-1096.96,0.0001726,2]
[391292173,1760470292398,-500.0,0.0001726,2]
[391292174,1760470292407,-900.78,0.0001726,2]
[391292175,1760470292416,-1022.92,0.0001726,2]
[391292176,1760470292425,-1321.46,0.0001726,2]
[391292177,1760470292435,-500.0,0.0001726,2]
[391292178,1760470292444,-2461.71,0.0001726,2]
[391292179,1760470292453,-659.65,0.0001726,2]
[391292180,1760470292463,-500.0,0.0001726,2]
[391292181,1760470292472,-500.0,0.0001726,2]
[391292182,1760470292481,-500.0,0.0001726,2]
[391292183,1760470292493,-500.0,0.0001726,2]
[391292184,1760470292502,-1496.59,0.0001726,2]
[391292185,1760470292511,-500.0,0.0001726,2]
[391292186,1760470292520,-500.0,0.0001726,2]
[391292187,1760470292528,-504.23,0.0001726,2]
[391292188,1760470292538,-1098.26,0.0001726,2]
[391292189,1760470292546,-500.0,0.0001726,2]
[391292190,1760470292555,-500.0,0.0001726,2]
[391292191,1760470292564,-868.45,0.0001726,2]
[391292192,1760470292574,-500.0,0.0001726,2]
[391292193,1760470292583,-1647.08,0.0001726,2]
[391292194,1760470292592,-500.0,0.0001726,2]
[391292195,1760470292602,-746.15,0.0001726,2]
[391292196,1760470292612,-500.0,0.0001726,2]
[391292197,1760470292621,-500.0,0.0001726,2]
[391292198,1760470292631,-610.04,0.0001726,2]
[391292199,1760470292640,-500.0,0.0001726,2]
[391292200,1760470292649,-500.0,0.0001726,2]
[391292201,1760470292659,-500.0,0.0001726,2]
[391292202,1760470292668,-500.0,0.0001726,2]
[391292203,1760470292677,-500.0,0.0001726,2]
[391292204,1760470292687,-636.57,0.0001726,2]
[391292205,1760470292696,-500.0,0.0001726,2]
[391292206,1760470292705,-500.0,0.0001726,2]
[391292207,1760470292715,-500.0,0.0001726,2]
[391292208,1760470292724,-500.0,0.0001726,2]
[391292209,1760470292734,-1563.94,0.0001726,2]
[391292210,1760470292744,-2127.04,0.0001726,2]
[391292211,1760470292753,-1248.6,0.0001726,2]
[391292212,1760470292762,-500.0,0.0001726,2]
[391292213,1760470292771,-909.08,0.0001726,2]
[391292214,1760470292780,-1134.65,0.0001726,2]
[391292215,1760470292790,-1114.51,0.0001726,2]
[391292216,1760470292799,-516.22,0.0001726,2]
[391292217,1760470292808,-500.0,0.0001726,2]
[391292218,1760470292818,-500.0,0.0001726,2]
[391292219,1760470292827,-1172.2,0.0001726,2]
[391292220,1760470292835,-1221.46,0.0001726,2]
[391292221,1760470292844,-500.0,0.0001726,2]
[391292222,1760470292853,-500.0,0.0001726,2]
[391292223,1760470292862,-500.0,0.0001726,2]
[391292224,1760470292870,-500.0,0.0001726,2]
[391292225,1760470292888,-500.0,0.0001726,2]
[391292226,1760470292898,-500.0,0.0001726,2]
[391292227,1760470292907,-500.0,0.0001726,2]
[391292228,1760470292917,-500.0,0.0001726,2]
[391292229,1760470292926,-500.0,0.0001726,2]
[391292230,1760470292935,-1032.29,0.0001726,2]
[391292231,1760470292944,-611.49,0.0001726,2]
[391292232,1760470292953,-500.0,0.0001726,2]
[391292233,1760470292962,-500.0,0.0001726,2]
[391292234,1760470292971,-500.0,0.0001726,2]
[391292235,1760470292980,-1011.43,0.0001726,2]
[391292236,1760470292989,-621.11,0.0001726,2]
[391292237,1760470292998,-500.0,0.0001726,2]
[391292238,1760470293007,-960.01,0.0001726,2]
[391292239,1760470293016,-1138.67,0.0001726,2]
[391292240,1760470293025,-798.62,0.0001726,2]
[391292241,1760470293034,-359.20132602,0.0001726,2]
[391292242,1760470293043,-1641.78,0.0001726,2]
[391292243,1760470293052,-1881.99,0.0001726,2]
[391292244,1760470293061,-500.0,0.0001726,2]
[391292245,1760470293070,-500.0,0.0001726,2]
[391292246,1760470293079,-500.0,0.0001726,2]
[391292247,1760470293087,-506.48,0.0001726,2]
[391292248,1760470293096,-1012.51,0.0001726,2]
[391292249,1760470293105,-929.68,0.0001726,2]
[391292250,1760470293115,-500.0,0.0001726,2]
[391292251,1760470293124,-549.55,0.0001726,2]
[391292252,1760470293134,-1074.91,0.0001726,2]
[391292253,1760470293144,-1063.15,0.0001726,2]
[391292254,1760470293153,-500.0,0.0001726,2]
[391292255,1760470293162,-1122.19,0.0001726,2]
[391292256,1760470293171,-500.0,0.0001726,2]
[391292257,1760470293179,-574.66,0.0001726,2]
[391292258,1760470293188,-1006.98,0.0001726,2]
[391292259,1760470293197,-516.89,0.0001726,2]
[391292260,1760470293206,-648.46,0.0001726,2]
[391292261,1760470293215,-710.02,0.0001726,2]
[391292262,1760470293224,-500.0,0.0001726,2]
[391292263,1760470293233,-500.0,0.0001726,2]
[391292264,1760470293242,-624.35,0.0001726,2]
[391292265,1760470293251,-500.0,0.0001726,2]
[391292266,1760470293261,-500.0,0.0001726,2]
[391292267,1760470293274,-500.0,0.0001726,2]
[391292268,1760470293283,-500.0,0.0001726,2]
[391292269,1760470293292,-500.0,0.0001726,2]
[391292270,1760470293301,-1114.85,0.0001726,2]
[391292271,1760470293310,-716.89,0.0001726,2]
[391292272,1760470293319,-500.0,0.0001726,2]
[391292273,1760470293328,-500.0,0.0001726,2]
[391292274,1760470293338,-597.68,0.0001726,2]
[391292275,1760470293347,-500.0,0.0001726,2]
[391292276,1760470293357,-500.0,0.0001726,2]
[391292277,1760470293366,-500.0,0.0001726,2]
[391292278,1760470293376,-572.37,0.0001726,2]
[391292279,1760470293388,-2025.4,0.0001726,2]
[391292280,1760470293400,-1526.85,0.0001726,2]
[391292281,1760470293409,-500.0,0.0001726,2]
[391292282,1760470293419,-1710.65,0.0001726,2]
[391292283,1760470293428,-500.0,0.0001726,2]
[391292284,1760470293438,-500.0,0.0001726,2]
[391292285,1760470293448,-500.0,0.0001726,2]
[391292286,1760470293457,-500.0,0.0001726,2]
[391292287,1760470293469,-908.78,0.0001726,2]
[391292288,1760470293478,-1628.56,0.0001726,2]
[391292289,1760470293488,-599.93,0.0001726,2]
[391292290,1760470293498,-500.0,0.0001726,2]
[391292291,1760470293508,-1062.13,0.0001726,2]
[391292292,1760470293517,-500.0,0.0001726,2]
[391292293,1760470293527,-699.12,0.0001726,2]
[391292294,1760470293537,-624.0,0.0001726,2]
[391292295,1760470293547,-500.0,0.0001726,2]
[391292296,1760470293558,-525.58,0.0001726,2]
[391292297,1760470293568,-500.0,0.0001726,2]
[391292298,1760470293577,-1312.54,0.0001726,2]
[391292299,1760470293588,-500.0,0.0001726,2]
[391292300,1760470293599,-1222.51,0.0001726,2]
[391292301,1760470293608,-565.94,0.0001726,2]
[391292302,1760470293618,-500.0,0.0001726,2]
[391292303,1760470293628,-500.0,0.0001726,2]
[391292304,1760470293639,-609.17,0.0001726,2]
[391292305,1760470293649,-648.83450258,0.0001726,2]
[391292306,1760470293662,-500.0,0.0001726,2]
[391292307,1760470293672,-500.0,0.0001726,2]
[391292308,1760470293682,-500.0,0.0001726,2]
[391292309,1760470293692,-1213.77,0.0001726,2]
[391292310,1760470293702,-1810.53,0.0001726,2]
[391292311,1760470293712,-2269.47,0.0001726,2]
[391292312,1760470293722,-848.26,0.0001726,2]
[391292313,1760470293732,-500.0,0.0001726,2]
[391292314,1760470293742,-500.0,0.0001726,2]
[391292315,1760470293752,-1143.15,0.0001726,2]
[391292316,1760470293763,-500.0,0.0001726,2]
[391292317,1760470293773,-500.0,0.0001726,2]
[391292318,1760470293783,-1119.49,0.0001726,2]
[391292319,1760470293793,-500.0,0.0001726,2]
[391292320,1760470293803,-379.81694018,0.0001726,2]
[391292321,1760470293813,-500.0,0.0001726,2]
[391292322,1760470293822,-500.0,0.0001726,2]
[391292323,1760470293832,-734.76,0.0001726,2]
[391292324,1760470293842,-500.0,0.0001726,2]
[391292325,1760470293855,-500.0,0.0001726,2]
[391292326,1760470293865,-500.0,0.0001726,2]
[391292327,1760470293875,-500.0,0.0001726,2]
[391292328,1760470293885,-655.98,0.0001726,2]
[391292329,1760470293896,-500.0,0.0001726,2]
[391292330,1760470293906,-500.0,0.0001726,2]
[391292331,1760470293916,-500.0,0.0001726,2]
[391292332,1760470293926,-1633.7,0.0001726,2]
[391292333,1760470293936,-896.35,0.0001726,2]